fUST/lending_fUST_20241108
["ID","MTS","AMOUNT","RATE_DAILY","PERIOD"]
[341650977,1731061848528,-967.398749,0.00024109,7]
[341650978,1731061848537,-967.398749,0.00024109,7]
[341650979,1731061848546,-505.723471,0.00024109,7]
[341650980,1731061848556,-505.723471,0.00024109,7]
[341650981,1731061848565,-657.0,0.00024109,2]
[341650982,1731061848574,-1364.57,0.00024109,2]
[341650983,1731061848583,-500.0,0.00024109,2]
[341650984,1731061848592,-274.341154,0.00024109,7]
[341650985,1731061848602,-645.68979747,0.00024109,2]
[341650986,1731061848612,-274.341154,0.00024109,7]
[341650987,1731061848621,-500.0,0.00024109,2]
[341650988,1731061848630,-500.0,0.00024109,2]
[341650989,1731061848639,-652.02,0.00024109,2]
[341650990,1731061848649,-500.0,0.00024109,2]
[341650991,1731061848658,-339.657569,0.00024109,7]
[341650992,1731061848667,-339.657569,0.00024109,7]
[341650993,1731061848677,-500.0,0.00024109,2]
[341650994,1731061848687,-500.0,0.00024109,2]
[341650995,1731061848696,-496.96517572,0.00024109,2]
[341650996,1731061848706,-592.75544,0.00024109,7]
[341650997,1731061848727,-592.75544,0.00024109,7]
[341650998,1731061848738,-151.0,0.00024109,7]
[341650999,1731061848747,-859.656061,0.00024109,7]
[341651000,1731061848758,-962.03,0.00024109,2]
[341651001,1731061848768,-859.656061,0.00024109,7]
[341651002,1731061848778,-934.639051,0.00024109,7]
[341651003,1731061848788,-934.639051,0.00024109,7]
[341651004,1731061848798,-151.0,0.00024109,7]
[341651005,1731061848810,-3648.27,0.00024109,2]
[341651006,1731061848819,-151.0,0.00024383,7]
[341651007,1731061848829,-291.09646795,0.00024383,2]
[341651008,1731061848839,-500.0,0.00024383,2]
[341651009,1731061848848,-288.13904886,0.00024383,2]
[341651010,1731061848859,-151.0,0.00024383,7]
[341651011,1731061848871,-169.877464,0.00024383,7]
[341651012,1731061848880,-198.51764,0.00024383,7]
[341651013,1731061848890,-198.51764,0.00024383,7]
[341651014,1731061848900,-827.66,0.00024383,2]
[341651015,1731061848910,-383.530475,0.00024383,7]
[341651016,1731061848919,-383.530475,0.00024383,7]
[341651017,1731061848930,-500.0,0.00024383,2]
[341651018,1731061848939,-938.055874,0.00024383,7]
[341651019,1731061848949,-938.055874,0.00024383,7]
[341651020,1731061848959,-500.0,0.00024383,2]
[341651021,1731061848969,-844.68,0.00024383,2]
[341651022,1731061848978,-500.0,0.00024383,2]
[341651023,1731061848988,-1825.57,0.00024383,2]
[341651024,1731061848998,-7413.72,0.00024383,2]
[341651025,1731061849007,-1244.76,0.00024383,2]
[341651026,1731061849017,-6682.39,0.00024383,2]
[341651027,1731061849027,-539.58,0.00024383,2]
[341651028,1731061849038,-657.0,0.00024383,2]
[341651029,1731061849048,-1364.57,0.00024383,2]
[341651030,1731061849058,-500.0,0.00024383,2]
[341651031,1731061849067,-500.0,0.00024383,2]
[341651032,1731061849077,-500.0,0.00024383,2]
[341651033,1731061849086,-652.02,0.00024383,2]
[341651034,1731061849096,-500.0,0.00024383,2]
[341651035,1731061849105,-500.0,0.00024383,2]
[341651036,1731061849114,-500.0,0.00024383,2]
[341651037,1731061849124,-962.03,0.00024383,2]
[341651038,1731061849133,-3648.27,0.00024383,2]
[341651039,1731061849143,-169.385966,0.00024482,2]
[341651040,1731061849152,-500.0,0.0002455,2]
[341651041,1731061849161,-438.2189187,0.0002455,2]
[341651042,1731061849171,-256.08,0.00024557,7]
[341651043,1731061849181,-198.79404683,0.00024557,7]
[341651044,1731061849190,-151.599,0.000246,2]
[341651045,1731061849200,-151.0,0.00024657,7]
[341651046,1731061849210,-151.0,0.00024657,7]
[341651047,1731061849220,-500.0,0.00024657,2]
[341651048,1731061849229,-200.0,0.00024657,2]
[341651049,1731061849239,-180.248497,0.00024657,7]
[341651050,1731061849249,-200.0,0.00024657,2]
[341651051,1731061849259,-200.0,0.00024657,2]
[341651052,1731061849268,-216.80244572,0.00024657,2]
[341651053,1731061849278,-180.248497,0.00024657,7]
[341651054,1731061849287,-151.0,0.00024657,7]
[341651055,1731061849297,-151.0,0.00024657,7]
[341651056,1731061849306,-351.120515,0.00024657,7]
[341651057,1731061849316,-351.120515,0.00024657,7]
[341651058,1731061849325,-249.408838,0.00024657,7]
[341651059,1731061849335,-827.66,0.00024657,2]
[341651060,1731061849344,-500.0,0.00024657,2]
[341651061,1731061849354,-500.0,0.00024657,2]
[341651062,1731061849364,-844.68,0.00024657,2]
[341651063,1731061849374,-500.0,0.00024657,2]
[341651064,1731061849383,-1825.57,0.00024657,2]
[341651065,1731061849393,-7413.72,0.00024657,2]
[341651066,1731061849402,-1244.76,0.00024657,2]
[341651067,1731061849411,-6682.39,0.00024657,2]
[341651068,1731061849420,-539.58,0.00024657,2]
[341651069,1731061849429,-657.0,0.00024657,2]
[341651070,1731061849439,-1364.57,0.00024657,2]
[341651071,1731061849449,-500.0,0.00024657,2]
[341651072,1731061849458,-500.0,0.00024657,2]
[341651073,1731061849468,-500.0,0.00024657,2]
[341651074,1731061849478,-652.02,0.00024657,2]
[341651075,1731061849488,-500.0,0.00024657,2]
[341651076,1731061849499,-500.0,0.00024657,2]
[341651077,1731061849508,-500.0,0.00024657,2]
[341651078,1731061849517,-962.03,0.00024657,2]
[341651079,1731061849527,-3648.27,0.00024657,2]
[341651080,1731061849536,-150.0,0.00024658,2]
[341651081,1731061849545,-644.7975861,0.00024658,2]
[341651082,1731061849554,-436.00755021,0.00024658,2]
[341651083,1731061849564,-500.0,0.00024658,2]
[341651084,1731061849574,-550.0,0.00024658,2]
[341651085,1731061849583,-500.0,0.00024658,2]
[341651086,1731061849592,-500.0,0.00024658,2]
[341651087,1731061849602,-500.0,0.00024658,2]
[341651088,1731061849612,-500.0,0.00024658,2]
[341651089,1731061849622,-500.0,0.00024658,2]
[341651090,1731061849633,-500.0,0.00024658,2]
[341651091,1731061849642,-500.0,0.00024658,2]
[341651092,1731061849651,-500.0,0.00024658,2]
[341651093,1731061849662,-500.0,0.00024658,2]
[341651094,1731061849671,-500.0,0.00024658,2]
[341651095,1731061849680,-500.0,0.00024658,2]
[341651096,1731061849690,-172.74612873,0.00024658,2]
[341651097,1731061849699,-151.0,0.00024658,7]
[341651098,1731061849708,-1619.57725586,0.00024723,2]
[341651099,1731061849718,-151.0,0.00024724,7]
[341651100,1731061849727,-1000.0,0.00024737,2]
[341651101,1731061849737,-500.0,0.00024791,2]
[341651102,1731061849747,-500.0,0.00024791,2]
[341651103,1731061849757,-500.0,0.00024931,2]
[341651104,1731061849768,-827.66,0.00024931,2]
[341651105,1731061849778,-245.84,0.00024931,2]
[341651106,1731061849788,-500.0,0.00024931,2]
[341651107,1731061849798,-844.68,0.00024931,2]
[341651108,1731061849808,-500.0,0.00024931,2]
[341651109,1731061849818,-1825.57,0.00024931,2]
[341651110,1731061849827,-7413.72,0.00024931,2]
[341651111,1731061849837,-1244.76,0.00024931,2]
[341651112,1731061849846,-6682.39,0.00024931,2]
[341651113,1731061849856,-539.58,0.00024931,2]
[341651114,1731061849869,-657.0,0.00024931,2]
[341651115,1731061849878,-1364.57,0.00024931,2]
[341651116,1731061849887,-500.0,0.00024931,2]
[341651117,1731061849897,-274.341154,0.00024931,7]
[341651118,1731061849907,-274.341154,0.00024931,7]
[341651119,1731061849916,-500.0,0.00024931,2]
[341651120,1731061849926,-500.0,0.00024931,2]
[341651121,1731061849937,-652.02,0.00024931,2]
[341651122,1731061849946,-500.0,0.00024931,2]
[341651123,1731061849956,-339.657569,0.00024931,7]
[341651124,1731061849965,-339.657569,0.00024931,7]
[341651125,1731061849974,-500.0,0.00024931,2]
[341651126,1731061849984,-500.0,0.00024931,2]
[341651127,1731061849993,-859.656061,0.00024931,7]
[341651128,1731061850002,-962.03,0.00024931,2]
[341651129,1731061850012,-859.656061,0.00024931,7]
[341651130,1731061850021,-151.0,0.00024931,7]
[341651131,1731061850030,-1121.22390946,0.00024931,2]
[341651132,1731061850136,-2527.04609054,0.00024931,2]
[341651133,1731061850224,-500.0,0.0002495,2]
[341651134,1731061850242,-500.0,0.0002495,2]
[341651135,1731061850252,-496.50233835,0.0002495,2]
[341651136,1731061850261,-312.77005598,0.00025,120]
[341651137,1731061850270,-3381.86466795,0.00025,2]
[341651138,1731061850279,-500.0,0.00025064,2]
[341651139,1731061850289,-500.0,0.00025205,2]
[341651140,1731061850298,-360.183581,0.00025205,7]
[341651141,1731061850308,-360.183581,0.00025205,7]
[341651142,1731061850318,-827.66,0.00025205,2]
[341651143,1731061850327,-151.0,0.00025205,7]
[341651144,1731061850336,-500.0,0.00025205,2]
[341651145,1731061850346,-844.68,0.00025205,2]
[341651146,1731061850355,-86.90130291,0.00025205,7]
[341651147,1731061850366,-64.09869709,0.00025205,7]
[341651148,1731061850376,-500.0,0.00025205,2]
[341651149,1731061850386,-1825.57,0.00025205,2]
[341651150,1731061850395,-273.80929065,0.00025205,2]
[341651154,1731061866272,694.44444444,0.00020843,2]
[341651167,1731062467596,166.305324,0.00013973,2]
[341651168,1731062477677,694.44444444,0.00020843,2]
[341651169,1731062641803,627.3069553,0.00020723,2]
[341651182,1731062746660,195.11078,0.00020473,2]
[341651299,1731063032817,-585.53288,0.00020853,2]
[341651300,1731063032863,-108.91156444,0.00020853,2]
[341651301,1731063032873,-141.08843556,0.00020882,2]
[341651302,1731063032887,-68.90111316,0.00020882,2]
[341651303,1731063032896,-266.23039502,0.00020891,2]
[341651323,1731063038808,-33.76960498,0.00020891,2]
[341651325,1731063038819,-300.0,0.00020891,2]
[341651327,1731063038828,-1279.21551724,0.00020892,2]
[341651337,1731063038943,-8147.47606263,0.00020892,2]
[341651338,1731063039070,-5453.90767063,0.00020892,2]
[341651339,1731063039079,-282.266961,0.00021167,2]
[341651340,1731063039089,-1110.40689624,0.00021817,2]
[341651341,1731063039098,-203.80561348,0.00021817,2]
[341651342,1731063039107,-466.73561599,0.00021917,2]
[341651343,1731063039117,-3021.18329302,0.00021917,2]
[341651344,1731063039127,-500.0,0.00021917,2]
[341651345,1731063039137,-500.0,0.00021917,2]
[341651346,1731063039146,-500.0,0.00021917,2]
[341651347,1731063039155,-500.0,0.00021917,2]
[341651348,1731063039165,-500.0,0.00021917,2]
[341651349,1731063039175,-500.0,0.00021917,2]
[341651350,1731063039183,-500.0,0.00021917,2]
[341651351,1731063039193,-500.0,0.00021917,2]
[341651352,1731063039202,-500.0,0.00021917,2]
[341651353,1731063039211,-500.0,0.00021917,2]
[341651354,1731063039223,-500.0,0.00021917,2]
[341651355,1731063039232,-500.0,0.00021917,2]
[341651356,1731063039241,-500.0,0.00021917,2]
[341651357,1731063039251,-500.0,0.00021917,2]
[341651358,1731063039263,-500.0,0.00021917,2]
[341651359,1731063039286,-500.0,0.00021917,2]
[341651361,1731063039305,-500.0,0.00021917,2]
[341651363,1731063039314,-500.0,0.00021917,2]
[341651365,1731063039323,-500.0,0.00021917,2]
[341651367,1731063039332,-500.0,0.00021917,2]
[341651369,1731063039341,-217.27507732,0.00021917,2]
[341651371,1731063039350,-500.0,0.00021917,2]
[341651373,1731063039359,-500.0,0.00021917,2]
[341651375,1731063039368,-500.0,0.00021917,2]
[341651377,1731063039377,-500.0,0.00021917,2]
[341651379,1731063039386,-422.3860631,0.00021917,2]
[341651381,1731063039395,-500.0,0.00021917,2]
[341651383,1731063039404,-500.0,0.00021917,2]
[341651385,1731063039414,-500.0,0.00021917,2]
[341651387,1731063039423,-500.0,0.00021917,2]
[341651389,1731063039432,-500.0,0.00021917,2]
[341651391,1731063039441,-500.0,0.00021917,2]
[341651393,1731063039449,-500.0,0.00021917,2]
[341651395,1731063039458,-500.0,0.00021917,2]
[341651397,1731063039467,-500.0,0.00021917,2]
[341651399,1731063039480,-500.0,0.00021917,2]
[341651401,1731063039490,-155.32956915,0.00021917,2]
[341651460,1731063040738,-344.67043085,0.00021917,2]
[341651461,1731063040748,-500.0,0.00021917,2]
[341651462,1731063040758,-508.95520663,0.00021917,2]
[341651463,1731063040767,-188.14129703,0.00021917,2]
[341651464,1731063040776,-500.0,0.00021917,2]
[341651465,1731063040786,-500.0,0.00021917,2]
[341651466,1731063040795,-500.0,0.00021917,2]
[341651467,1731063040804,-500.0,0.00021917,2]
[341651469,1731063040815,-934.23,0.00021917,2]
[341651471,1731063040827,-500.0,0.00021917,2]
[341651472,1731063040839,-199.19293322,0.00021917,2]
[341651473,1731063040848,-500.0,0.00021917,2]
[341651474,1731063040858,-500.0,0.00021917,2]
[341651475,1731063040867,-500.0,0.00021917,2]
[341651476,1731063040876,-500.0,0.00021917,2]
[341651477,1731063040887,-500.0,0.00021917,2]
[341651478,1731063040896,-504.93,0.00021917,2]
[341651479,1731063040906,-500.0,0.00021917,2]
[341651480,1731063040915,-500.0,0.00021917,2]
[341651481,1731063040924,-811.27,0.00021917,2]
[341651482,1731063040933,-500.0,0.00021917,2]
[341651483,1731063040942,-846.38083089,0.00021917,2]
[341651484,1731063040954,-6963.38916911,0.00021917,2]
[341651485,1731063040963,-500.0,0.00021917,2]
[341651486,1731063040973,-500.0,0.00021917,2]
[341651487,1731063040982,-2325.25193092,0.00021917,2]
[341651504,1731063045235,-1365.14426675,0.00021917,2]
[341651512,1731063046693,-2460.80380233,0.00021917,2]
[341651513,1731063046703,-559.18,0.00021917,2]
[341651514,1731063046713,-500.0,0.00021917,2]
[341651515,1731063046722,-500.0,0.00021917,2]
[341651516,1731063046731,-500.0,0.00021917,2]
[341651517,1731063046740,-506.39,0.00021917,2]
[341651518,1731063046752,-1255.23,0.00021917,2]
[341651519,1731063046761,-806.35,0.00021917,2]
[341651520,1731063046771,-806.35,0.00021917,2]
[341651522,1731063046781,-806.35,0.00021917,2]
[341651523,1731063046790,-806.35,0.00021917,2]
[341651524,1731063046800,-500.0,0.00021917,2]
[341651525,1731063046809,-500.0,0.00021917,2]
[341651526,1731063046819,-500.0,0.00021917,2]
[341651527,1731063046829,-500.0,0.00021917,2]
[341651528,1731063046838,-500.0,0.00021917,2]
[341651529,1731063046847,-500.0,0.00021917,2]
[341651530,1731063046857,-787.55,0.00021917,2]
[341651531,1731063046865,-500.0,0.00021917,2]
[341651532,1731063046875,-500.0,0.00021917,2]
[341651534,1731063046886,-500.0,0.00021917,2]
[341651535,1731063046903,-500.0,0.00021917,2]
[341651536,1731063046916,-500.0,0.00021917,2]
[341651537,1731063046926,-500.0,0.00021917,2]
[341651538,1731063046936,-500.0,0.00021917,2]
[341651539,1731063046946,-500.0,0.00021917,2]
[341651540,1731063046957,-500.0,0.00021917,2]
[341651541,1731063046967,-500.0,0.00021917,2]
[341651542,1731063046978,-500.0,0.00021917,2]
[341651543,1731063046988,-500.0,0.00021917,2]
[341651544,1731063046999,-761.34,0.00021917,2]
[341651545,1731063047008,-500.0,0.00021917,2]
[341651546,1731063047018,-500.0,0.00021917,2]
[341651547,1731063047028,-500.0,0.00021917,2]
[341651548,1731063047038,-500.0,0.00021917,2]
[341651549,1731063047047,-500.0,0.00021917,2]
[341651550,1731063047058,-500.0,0.00021917,2]
[341651551,1731063047068,-550.67,0.00021917,2]
[341651552,1731063047078,-500.0,0.00021917,2]
[341651553,1731063047088,-500.0,0.00021917,2]
[341651554,1731063047098,-500.0,0.00021917,2]
[341651555,1731063047108,-1833.08,0.00021917,2]
[341651556,1731063047117,-500.0,0.00021917,2]
[341651557,1731063047127,-500.0,0.00021917,2]
[341651558,1731063047137,-3229.76,0.00021917,2]
[341651559,1731063047147,-1498.93,0.00021917,2]
[341651560,1731063047158,-500.0,0.00021917,2]
[341651561,1731063047168,-500.0,0.00021917,2]
[341651562,1731063047178,-166.666666,0.00021918,2]
[341651563,1731063047188,-2450.0,0.0002192,2]
[341651564,1731063047198,-806.35,0.00022189,2]
[341651565,1731063047208,-500.0,0.0002219,2]
[341651566,1731063047221,-500.0,0.0002219,2]
[341651567,1731063047232,-500.0,0.0002219,2]
[341651568,1731063047241,-500.0,0.0002219,2]
[341651569,1731063047251,-500.0,0.0002219,2]
[341651570,1731063047261,-500.0,0.0002219,2]
[341651571,1731063047270,-500.0,0.0002219,2]
[341651572,1731063047280,-500.0,0.0002219,2]
[341651573,1731063047290,-500.0,0.0002219,2]
[341651574,1731063047300,-207.14901122,0.0002219,2]
[341651575,1731063047310,-500.0,0.0002219,2]
[341651576,1731063047320,-500.0,0.0002219,2]
[341651577,1731063047329,-500.0,0.0002219,2]
[341651578,1731063047339,-500.0,0.0002219,2]
[341651579,1731063047349,-500.0,0.0002219,2]
[341651580,1731063047359,-500.0,0.0002219,2]
[341651581,1731063047368,-500.0,0.0002219,2]
[341651582,1731063047378,-500.0,0.0002219,2]
[341651583,1731063047388,-500.0,0.0002219,2]
[341651584,1731063047397,-500.0,0.0002219,2]
[341651585,1731063047407,-500.0,0.0002219,2]
[341651586,1731063047416,-500.0,0.0002219,2]
[341651587,1731063047427,-500.0,0.0002219,2]
[341651588,1731063047436,-500.0,0.0002219,2]
[341651589,1731063047446,-500.0,0.0002219,2]
[341651590,1731063047455,-376.72632662,0.0002219,2]
[341651591,1731063047465,-500.0,0.0002219,2]
[341651592,1731063047475,-500.0,0.0002219,2]
[341651593,1731063047484,-500.0,0.0002219,2]
[341651594,1731063047494,-500.0,0.0002219,2]
[341651595,1731063047503,-500.0,0.0002219,2]
[341651596,1731063047516,-500.0,0.0002219,2]
[341651597,1731063047525,-500.0,0.0002219,2]
[341651598,1731063047534,-598.95486793,0.0002219,2]
[341651599,1731063047546,-500.0,0.0002219,2]
[341651600,1731063047555,-500.0,0.0002219,2]
[341651601,1731063047564,-500.0,0.0002219,2]
[341651602,1731063047574,-500.0,0.0002219,2]
[341651603,1731063047583,-578.57211236,0.0002219,2]
[341651604,1731063047593,-500.0,0.0002219,2]
[341651605,1731063047602,-500.0,0.0002219,2]
[341651606,1731063047612,-500.0,0.0002219,2]
[341651607,1731063047622,-500.0,0.0002219,2]
[341651608,1731063047631,-499.99999999,0.0002219,2]
[341651609,1731063047641,-806.35,0.0002219,2]
[341651610,1731063047650,-806.35,0.0002219,2]
[341651611,1731063047660,-806.35,0.0002219,2]
[341651612,1731063047669,-649.81344058,0.00022191,2]
[341651613,1731063047677,-500.0,0.00022191,2]
[341651614,1731063047687,-500.0,0.00022191,2]
[341651615,1731063047696,-500.0,0.00022191,2]
[341651616,1731063047706,-500.0,0.00022191,2]
[341651617,1731063047715,-627.5130378,0.00022191,2]
[341651618,1731063047725,-500.0,0.00022191,2]
[341651619,1731063047734,-500.0,0.00022191,2]
[341651620,1731063047743,-594.47187598,0.00022191,2]
[341651621,1731063047753,-500.0,0.00022191,2]
[341651622,1731063047762,-500.0,0.00022191,2]
[341651623,1731063047771,-500.0,0.00022191,2]
[341651624,1731063047780,-500.0,0.00022191,2]
[341651625,1731063047790,-500.0,0.00022191,2]
[341651626,1731063047799,-500.0,0.00022191,2]
[341651627,1731063047809,-500.0,0.00022191,2]
[341651628,1731063047819,-500.0,0.00022191,2]
[341651629,1731063047828,-500.0,0.00022191,2]
[341651630,1731063047837,-500.0,0.00022191,2]
[341651631,1731063047847,-500.0,0.00022191,2]
[341651632,1731063047856,-448.431675,0.00022191,2]
[341651633,1731063047865,-500.0,0.00022191,2]
[341651634,1731063047875,-500.0,0.00022191,2]
[341651635,1731063047884,-500.0,0.00022191,2]
[341651636,1731063047894,-500.0,0.00022191,2]
[341651637,1731063047904,-500.0,0.00022191,2]
[341651638,1731063047914,-318.33425543,0.00022191,2]
[341651639,1731063047923,-271.47198924,0.00022191,2]
[341651640,1731063047933,-500.0,0.00022191,2]
[341651641,1731063047943,-500.0,0.00022191,2]
[341651642,1731063047952,-500.0,0.00022191,2]
[341651643,1731063047962,-500.0,0.00022191,2]
[341651644,1731063048105,-934.23,0.00022191,2]
[341651645,1731063048115,-500.0,0.00022191,2]
[341651646,1731063048125,-500.0,0.00022191,2]
[341651647,1731063048134,-500.0,0.00022191,2]
[341651648,1731063048144,-500.0,0.00022191,2]
[341651649,1731063048153,-500.0,0.00022191,2]
[341651650,1731063048163,-500.0,0.00022191,2]
[341651651,1731063048173,-504.93,0.00022191,2]
[341651652,1731063048182,-500.0,0.00022191,2]
[341651653,1731063048192,-811.27,0.00022191,2]
[341651654,1731063048202,-500.0,0.00022191,2]
[341651655,1731063048212,-7809.77,0.00022191,2]
[341651656,1731063048226,-500.0,0.00022191,2]
[341651657,1731063048235,-6151.2,0.00022191,2]
[341651658,1731063048245,-559.18,0.00022191,2]
[341651659,1731063048255,-500.0,0.00022191,2]
[341651660,1731063048264,-500.0,0.00022191,2]
[341651661,1731063048274,-500.0,0.00022191,2]
[341651662,1731063048283,-506.39,0.00022191,2]
[341651663,1731063048292,-1255.23,0.00022191,2]
[341651664,1731063048302,-500.0,0.00022191,2]
[341651665,1731063048312,-500.0,0.00022191,2]
[341651666,1731063048321,-500.0,0.00022191,2]
[341651667,1731063048330,-500.0,0.00022191,2]
[341651668,1731063048340,-500.0,0.00022191,2]
[341651669,1731063048349,-787.55,0.00022191,2]
[341651670,1731063048358,-500.0,0.00022191,2]
[341651671,1731063048367,-500.0,0.00022191,2]
[341651672,1731063048377,-500.0,0.00022191,2]
[341651673,1731063048385,-500.0,0.00022191,2]
[341651674,1731063048394,-500.0,0.00022191,2]
[341651675,1731063048403,-500.0,0.00022191,2]
[341651676,1731063048413,-500.0,0.00022191,2]
[341651677,1731063048421,-500.0,0.00022191,2]
[341651678,1731063048430,-500.0,0.00022191,2]
[341651679,1731063048439,-761.34,0.00022191,2]
[341651680,1731063048448,-500.0,0.00022191,2]
[341651681,1731063048457,-500.0,0.00022191,2]
[341651682,1731063048465,-500.0,0.00022191,2]
[341651683,1731063048474,-500.0,0.00022191,2]
[341651684,1731063048482,-550.67,0.00022191,2]
[341651685,1731063048490,-500.0,0.00022191,2]
[341651686,1731063048499,-500.0,0.00022191,2]
[341651687,1731063048510,-500.0,0.00022191,2]
[341651688,1731063048518,-1833.08,0.00022191,2]
[341651689,1731063048527,-500.0,0.00022191,2]
[341651690,1731063048535,-500.0,0.00022191,2]
[341651691,1731063048543,-3229.76,0.00022191,2]
[341651692,1731063048551,-1498.93,0.00022191,2]
[341651693,1731063048561,-500.0,0.00022191,2]
[341651694,1731063048570,-500.0,0.00022191,2]
[341651695,1731063048579,-203.80561347,0.00022228,2]
[341651696,1731063048588,-806.35,0.00022464,2]
[341651697,1731063048598,-806.35,0.00022464,2]
[341651698,1731063048607,-806.35,0.00022464,2]
[341651699,1731063048617,-523.323548,0.00022464,2]
[341651700,1731063048626,-341.01486487,0.00022464,2]
[341651701,1731063048635,-296.2715729,0.00022465,2]
[341651702,1731063048644,-500.0,0.00022465,2]
[341651703,1731063048653,-500.0,0.00022465,2]
[341651704,1731063048663,-500.0,0.00022465,2]
[341651705,1731063048672,-500.0,0.00022465,2]
[341651706,1731063048682,-500.0,0.00022465,2]
[341651707,1731063048692,-500.0,0.00022465,2]
[341651708,1731063048702,-500.0,0.00022465,2]
[341651709,1731063048712,-500.0,0.00022465,2]
[341651710,1731063048722,-457.74302646,0.00022465,2]
[341651711,1731063048731,-500.0,0.00022465,2]
[341651712,1731063048741,-500.0,0.00022465,2]
[341651713,1731063048750,-500.0,0.00022465,2]
[341651714,1731063048760,-500.0,0.00022465,2]
[341651715,1731063048770,-500.0,0.00022465,2]
[341651716,1731063048779,-500.0,0.00022465,2]
[341651717,1731063048788,-500.0,0.00022465,2]
[341651718,1731063048798,-500.0,0.00022465,2]
[341651719,1731063048807,-500.0,0.00022465,2]
[341651720,1731063048817,-500.0,0.00022465,2]
[341651721,1731063048826,-500.0,0.00022465,2]
[341651722,1731063048836,-500.0,0.00022465,2]
[341651723,1731063048845,-500.0,0.00022465,2]
[341651724,1731063048855,-500.0,0.00022465,2]
[341651725,1731063048864,-934.23,0.00022465,2]
[341651726,1731063048874,-500.0,0.00022465,2]
[341651727,1731063048884,-500.0,0.00022465,2]
[341651728,1731063048893,-500.0,0.00022465,2]
[341651729,1731063048903,-500.0,0.00022465,2]
[341651730,1731063048913,-500.0,0.00022465,2]
[341651731,1731063048922,-504.93,0.00022465,2]
[341651732,1731063048932,-500.0,0.00022465,2]
[341651733,1731063048941,-811.27,0.00022465,2]
[341651734,1731063048950,-500.0,0.00022465,2]
[341651735,1731063048959,-7809.77,0.00022465,2]
[341651736,1731063048968,-495.73389436,0.00022465,2]
[341651737,1731063048977,-6151.2,0.00022465,2]
[341651738,1731063048986,-559.18,0.00022465,2]
[341651739,1731063048995,-500.0,0.00022465,2]
[341651740,1731063049004,-500.0,0.00022465,2]
[341651741,1731063049014,-506.39,0.00022465,2]
[341651742,1731063049023,-1255.23,0.00022465,2]
[341651743,1731063049033,-500.0,0.00022465,2]
[341651744,1731063049043,-500.0,0.00022465,2]
[341651745,1731063049053,-500.0,0.00022465,2]
[341651746,1731063049063,-500.0,0.00022465,2]
[341651747,1731063049072,-500.0,0.00022465,2]
[341651748,1731063049082,-787.55,0.00022465,2]
[341651749,1731063049091,-500.0,0.00022465,2]
[341651750,1731063049100,-500.0,0.00022465,2]
[341651751,1731063049110,-500.0,0.00022465,2]
[341651752,1731063049119,-500.0,0.00022465,2]
[341651753,1731063049129,-500.0,0.00022465,2]
[341651754,1731063049138,-500.0,0.00022465,2]
[341651755,1731063049148,-500.0,0.00022465,2]